lending/lending_fUSD_20250913
["ID","MTS","AMOUNT","RATE_DAILY","PERIOD"]
[385368292,1757794243253,-400.0,0.00028217,2]
[385368294,1757794243262,-400.0,0.00028217,2]
[385368297,1757794243271,-400.0,0.00028217,2]
[385368300,1757794243284,-400.0,0.00028217,2]
[385368303,1757794243293,-518.92830486,0.00028217,2]
[385368306,1757794243302,-538.67,0.00028217,2]
[385368309,1757794243311,-400.0,0.00028217,2]
[385368312,1757794243320,-2484.05,0.00028217,2]
[385368315,1757794243329,-400.0,0.00028217,2]
[385368317,1757794243338,-400.0,0.00028217,2]
[385368319,1757794243347,-722.92,0.00028217,2]
[385368321,1757794243357,-400.0,0.00028217,2]
[385368323,1757794243366,-400.0,0.00028217,2]
[385368325,1757794243375,-1451.91,0.00028217,2]
[385368327,1757794243385,-400.0,0.00028217,2]
[385368329,1757794243394,-400.0,0.00028217,2]
[385368331,1757794243402,-400.0,0.00028217,2]
[385368333,1757794243411,-400.0,0.00028217,2]
[385368335,1757794243420,-400.0,0.00028217,2]
[385368337,1757794243429,-400.0,0.00028217,2]
[385368339,1757794243438,-400.0,0.00028217,2]
[385368341,1757794243447,-645.22,0.00028217,2]
[385368343,1757794243457,-400.0,0.00028217,2]
[385368345,1757794243465,-400.0,0.00028217,2]
[385368347,1757794243474,-400.0,0.00028217,2]
[385368349,1757794243483,-231.94162164,0.00028217,2]
[385368351,1757794243492,-825.2,0.00028217,2]
[385368353,1757794243501,-400.0,0.00028217,2]
[385368355,1757794243509,-957.62,0.00028217,2]
[385368357,1757794243519,-598.73,0.00028217,2]
[385368359,1757794243528,-400.0,0.00028217,2]
[385368361,1757794243537,-400.0,0.00028217,2]
[385368363,1757794243546,-400.0,0.00028217,2]
[385368365,1757794243555,-1063.96,0.00028217,2]
[385368367,1757794243564,-400.0,0.00028217,2]
[385368369,1757794243573,-179.07003633,0.00028217,2]
[385368371,1757794243582,-818.67,0.00028217,2]
[385368373,1757794243592,-400.0,0.00028217,2]
[385368375,1757794243601,-548.17,0.00028217,2]
[385368377,1757794243610,-400.0,0.00028217,2]
[385368379,1757794243618,-400.0,0.00028217,2]
[385368381,1757794243628,-462.14,0.00028217,2]
[385368383,1757794243636,-918.85,0.00028217,2]
[385368385,1757794243645,-966.05,0.00028217,2]
[385368387,1757794243654,-1034.41,0.00028217,2]
[385368388,1757794243663,-400.0,0.00028217,2]
[385368390,1757794243672,-400.0,0.00028217,2]
[385368392,1757794243681,-1001.66,0.00028217,2]
[385368394,1757794243690,-400.0,0.00028217,2]
[385368396,1757794243698,-438.0,0.00028217,2]
[385368398,1757794243709,-402.70487686,0.00028217,2]
[385368400,1757794243718,-400.0,0.00028217,2]
[385368402,1757794243727,-400.0,0.00028217,2]
[385368404,1757794243737,-400.0,0.00028217,2]
[385368406,1757794243746,-400.0,0.00028217,2]
[385368408,1757794243755,-400.0,0.00028217,2]
[385368410,1757794243764,-400.0,0.00028217,2]
[385368412,1757794243773,-326.01741392,0.00028217,2]
[385368414,1757794243782,-400.0,0.00028217,2]
[385368416,1757794243791,-481.76826112,0.00028217,2]
[385368418,1757794243800,-574.16,0.00028217,2]
[385368420,1757794243809,-400.0,0.00028217,2]
[385368422,1757794243819,-400.0,0.00028217,2]
[385368424,1757794243828,-400.0,0.00028217,2]
[385368426,1757794243837,-400.0,0.00028217,2]
[385368428,1757794243846,-513.90749885,0.00028217,2]
[385368430,1757794243856,-400.0,0.00028217,2]
[385368432,1757794243864,-400.0,0.00028217,2]
[385368434,1757794243873,-582.95,0.00028217,2]
[385368436,1757794243882,-1482.71,0.00028217,2]
[385368438,1757794243891,-400.0,0.00028217,2]
[385368440,1757794243901,-842.83,0.00028217,2]
[385368441,1757794243909,-400.0,0.00028217,2]
[385368442,1757794243918,-400.0,0.00028217,2]
[385368443,1757794243926,-1404.48,0.00028217,2]
[385368444,1757794243935,-400.0,0.00028217,2]
[385368445,1757794243944,-400.0,0.00028217,2]
[385368446,1757794243952,-591.43,0.00028217,2]
[385368447,1757794243961,-298.01067289,0.00028217,2]
[385368448,1757794243970,-400.0,0.00028217,2]
[385368449,1757794243979,-400.0,0.00028217,2]
[385368450,1757794243987,-400.0,0.00028217,2]
[385368451,1757794243996,-611.84,0.00028217,2]
[385368452,1757794244005,-808.1,0.00028217,2]
[385368453,1757794244014,-16675.5961487,0.00028229,3]
[385368455,1757794244022,-500.0,0.0002825,2]
[385368457,1757794244032,-16675.5961487,0.0002826,3]
[385368459,1757794244041,-160.00236567,0.00028269,2]
[385368461,1757794244050,-448.31601821,0.00028269,2]
[385368463,1757794244059,-33351.1922973,0.0002827,3]
[385368465,1757794244068,-212.99211257,0.0002827,3]
[385368467,1757794244077,-16675.5961487,0.00028271,3]
[385368469,1757794244086,-500.0,0.00028273,5]
[385368471,1757794244095,-500.0,0.0002829,2]
[385368473,1757794244104,-577.05,0.0002829,2]
[385368475,1757794244113,-500.0,0.0002829,2]
[385368477,1757794244122,-33351.1922973,0.00028291,3]
[385368479,1757794244130,-2038.0,0.00028301,2]
[385368481,1757794244139,-887.0,0.00028301,2]
[385368482,1757794244148,-1260.0,0.00028301,2]
[385368485,1757794244158,-3388.0,0.00028301,2]
[385368487,1757794244167,-1579.0,0.00028301,2]
[385368489,1757794244176,-1302.0,0.00028301,2]
[385368491,1757794244185,-601.0,0.00028301,2]
[385368492,1757794244194,-568.0,0.00028301,2]
[385368494,1757794244203,-958.983,0.00028301,2]
[385368497,1757794244214,-16675.5961487,0.00028349,3]
[385368498,1757794244224,-16675.5961487,0.00028359,3]
[385368500,1757794244233,-14409.81522187,0.00028359,3]
[385368523,1757794244429,-5984.96171963,0.00028359,3]
[385368525,1757794244439,-400.0,0.00028368,2]
[385368527,1757794244449,-632.19,0.00028368,2]
[385368529,1757794244459,-1953.52,0.00028368,2]
[385368531,1757794244468,-1339.39,0.00028368,2]
[385368533,1757794244477,-400.0,0.00028368,2]
[385368535,1757794244486,-400.0,0.00028368,2]
[385368537,1757794244495,-777.0,0.00028368,2]
[385368539,1757794244505,-766.43,0.00028368,2]
[385368541,1757794244514,-400.0,0.00028368,2]
[385368543,1757794244524,-400.0,0.00028368,2]
[385368545,1757794244533,-400.0,0.00028368,2]
[385368547,1757794244542,-400.0,0.00028368,2]
[385368549,1757794244551,-400.0,0.00028368,2]
[385368551,1757794244560,-400.0,0.00028368,2]
[385368553,1757794244570,-400.0,0.00028369,2]
[385368555,1757794244579,-471.03,0.00028369,2]
[385368557,1757794244588,-400.0,0.00028369,2]
[385368559,1757794244597,-287.44376132,0.00028369,2]
[385368561,1757794244609,-112.55623868,0.00028369,2]
[385368563,1757794244618,-735.62,0.00028369,2]
[385368565,1757794244627,-400.0,0.00028369,2]
[385368567,1757794244636,-814.58,0.00028369,2]
[385368569,1757794244645,-582.07104187,0.00028369,2]
[385368571,1757794244656,-291.5322962,0.00028369,2]
[385368599,1757794244907,-146.19666193,0.00028369,2]
[385368601,1757794244917,-400.0,0.00028369,2]
[385368603,1757794244926,-872.48,0.00028369,2]
[385368605,1757794244935,-1231.93,0.00028369,2]
[385368607,1757794244945,-646.85,0.00028369,2]
[385368609,1757794244955,-454.6,0.00028369,2]
[385368611,1757794244964,-503.23,0.00028369,2]
[385368613,1757794244974,-1472.49,0.00028369,2]
[385368615,1757794244983,-507.98,0.00028369,2]
[385368617,1757794244993,-380.43326535,0.00028369,2]
[385368619,1757794245002,-927.69,0.00028369,2]
[385368621,1757794245011,-400.0,0.00028369,2]
[385368623,1757794245021,-400.0,0.00028369,2]
[385368625,1757794245031,-449.65,0.00028369,2]
[385368627,1757794245040,-121.43261572,0.00028369,2]
[385368706,1757794245814,-404.62039412,0.00028369,2]
[385368708,1757794245824,-400.0,0.00028369,2]
[385368710,1757794245834,-1151.91,0.00028369,2]
[385368712,1757794245843,-400.0,0.00028369,2]
[385368713,1757794245853,-816.95,0.00028369,2]
[385368715,1757794245862,-400.0,0.00028369,2]
[385368716,1757794245872,-400.0,0.00028369,2]
[385368717,1757794245881,-400.0,0.00028369,2]
[385368718,1757794245891,-795.49,0.00028369,2]
[385368719,1757794245901,-829.24877787,0.00028369,2]
[385369051,1757794260191,250.7442102,0.00030137,120]
[385369052,1757794262500,300.0,0.00027742,120]
[385369053,1757794262657,300.0,0.00027938,120]
[385369054,1757794262776,300.0,0.00027938,120]
[385369055,1757794262892,300.0,0.00027938,120]
[385369056,1757794264370,2500.0,0.00027741,120]
[385369057,1757794264834,2500.0,0.00027868,120]
[385369058,1757794264870,2500.0,0.00027868,120]
[385369059,1757794264919,2500.0,0.00027868,120]
[385369060,1757794322238,300.0,0.00030103,120]
[385369061,1757794322519,300.0,0.00027446,120]
[385369062,1757794322800,300.0,0.00027623,120]
[385369063,1757794322903,216.1621787,0.00027623,120]
[385369064,1757794324346,2500.0,0.00030103,120]
[385369065,1757794324376,2500.0,0.00027446,120]
[385369066,1757794324482,2500.0,0.00027623,120]
[385369067,1757794324554,2500.0,0.00027623,120]
[385369068,1757794381451,300.0,0.00029952,120]
[385369069,1757794381569,300.0,0.00027246,120]
[385369070,1757794382896,2500.0,0.00029952,120]
[385369071,1757794383015,2500.0,0.00027246,120]
[385369072,1757794383120,2500.0,0.00027384,120]
[385369073,1757794383221,2500.0,0.00027384,120]
[385369074,1757794405693,2000.0,0.00024658,15]
[385369076,1757794631608,153.21,0.00027425,30]
[385369078,1757794798697,1500.0,0.00026166,120]
[385369079,1757794869846,931.84,0.00026596,120]
[385369080,1757794870059,931.84,0.0002992,120]
[385369081,1757795004292,2000.0,0.00024658,15]
[385369086,1757795338022,3841.5347976,0.0003,120]
[385369087,1757795417195,2000.0,0.00026149,120]
[385369093,1757795431907,-257.36,0.00020749,2]
[385369094,1757795431964,-95.56363,0.00020749,2]
[385369095,1757795431974,-759.80301203,0.00020853,3]
[385369096,1757795432072,-1240.19698797,0.00020853,3]
[385369097,1757795432081,-178.19334638,0.00020956,2]
[385369098,1757795432091,-300.0,0.00021135,2]
[385369099,1757795432100,-1200.0,0.00021135,2]
[385369100,1757795432109,-300.0,0.00021135,2]
[385369101,1757795432121,-1934.09014722,0.00021136,3]
[385369102,1757795432132,-65.90985278,0.00021136,3]
[385369103,1757795432141,-2000.0,0.00021136,3]
[385369104,1757795432150,-2000.0,0.00021136,3]
[385369105,1757795432159,-2500.0,0.00022936,2]
[385369106,1757795432168,-2500.0,0.00022936,2]
[385369107,1757795432176,-2500.0,0.00022936,2]
[385369108,1757795432185,-2161.06339229,0.00022936,2]
[385369109,1757795432253,-338.93660771,0.00022936,2]
[385369110,1757795432262,-2000.0,0.00022936,3]
[385369111,1757795432271,-212.99211257,0.00022936,3]
[385369112,1757795432280,-420.0,0.00022987,2]
[385369113,1757795432289,-160.0,0.00023,3]
[385369114,1757795432298,-160.0,0.00023,3]
[385369115,1757795432308,-2500.0,0.00023052,2]
[385369116,1757795432317,-2130.2022334,0.00023227,2]
[385369117,1757795432327,-3265.56914858,0.00024,5]
[385369118,1757795432338,-1734.43892667,0.00024,5]
[385369119,1757795432347,-5037.91076011,0.000249,2]
[385369120,1757795432356,-500.0,0.00024932,2]
[385369121,1757795432366,-433.0,0.00025002,2]
[385369122,1757795432375,-150.0,0.00025988,7]
[385369123,1757795432384,-1353.75,0.00026,2]
[385369124,1757795432394,-298.23553901,0.00026014,4]
[385369126,1757795432403,-150.0,0.00026014,4]
[385369129,1757795432412,-150.0,0.00026014,4]
[385369132,1757795432421,-1003.39802384,0.00026385,2]
[385369135,1757795432432,-444.85020514,0.00026386,2]
[385369137,1757795432441,-250.0,0.00026449,2]
[385369139,1757795432452,-338.65,0.00026559,2]
[385369141,1757795432461,-205.96,0.00026622,2]
[385369144,1757795432470,-346.31509615,0.00026789,2]
[385369147,1757795432480,-230.11568142,0.00026802,2]
[385369149,1757795432489,-230.11568142,0.00026838,2]
[385369151,1757795432498,-230.11568142,0.00026848,2]
[385369153,1757795432507,-230.11568142,0.00026905,2]
[385369155,1757795432516,-4707.93,0.00026968,2]
[385369157,1757795432526,-230.11568142,0.00026968,2]
[385369159,1757795432535,-230.11568142,0.00026985,2]
[385369161,1757795432545,-514.0,0.00027137,2]
[385369163,1757795432554,-666.0,0.00027202,3]
[385369165,1757795432563,-156.27,0.00027262,2]
[385369167,1757795432572,-1353.75,0.000273,2]
[385369169,1757795432581,-214.37285148,0.00027303,2]
[385369171,1757795432590,-165.18,0.00027367,2]
[385369173,1757795432599,-254.33,0.00027397,2]
[385369175,1757795432608,-1000.0,0.00027843,2]
[385369177,1757795432617,-151.0,0.0002794,7]
[385369179,1757795432627,-400.0,0.00027943,2]
[385369180,1757795432637,-400.0,0.00027943,2]
[385369182,1757795432646,-400.0,0.00027943,2]
[385369184,1757795432655,-400.0,0.00027943,2]
[385369186,1757795432665,-400.0,0.00027943,2]
[385369189,1757795432675,-400.0,0.00027943,2]
[385369190,1757795432684,-400.0,0.00027943,2]
[385369192,1757795432693,-662.68,0.00027943,2]
[385369195,1757795432704,-400.0,0.00027943,2]
[385369197,1757795432714,-400.0,0.00027943,2]
[385369198,1757795432723,-400.0,0.00027943,2]
[385369200,1757795432732,-591.45,0.00027943,2]
[385369202,1757795432741,-400.0,0.00027943,2]
[385369204,1757795432751,-548.83,0.00027943,2]
[385369206,1757795432760,-400.0,0.00027943,2]
[385369208,1757795432769,-500.0,0.00027943,2]
[385369210,1757795432778,-400.0,0.00027943,2]
[385369212,1757795432787,-18.80531003,0.00027943,2]
[385369269,1757795437793,-676.08410429,0.00027943,2]
[385369270,1757795437848,-55.56058568,0.00027943,2]
[385369271,1757795437858,-344.43941432,0.00027943,2]
[385369272,1757795437871,-59.7508425,0.00027943,2]
[385369273,1757795437881,-423.62,0.00027943,2]
[385369274,1757795437890,-400.0,0.00027943,2]
[385369275,1757795437900,-150.0,0.00027943,2]
[385369276,1757795437909,-150.0,0.00027943,2]
[385369277,1757795437918,-150.0,0.00027943,2]
[385369278,1757795437927,-150.0,0.00027943,2]
[385369279,1757795437936,-150.0,0.00027943,2]
[385369280,1757795437945,-150.0,0.00027943,2]
[385369281,1757795437954,-150.0,0.00027943,2]
[385369282,1757795437964,-200.0,0.00027943,2]
[385369283,1757795437973,-400.0,0.00027943,2]
[385369284,1757795437982,-150.0,0.00027943,2]
[385369285,1757795437991,-19.49446635,0.00027943,2]
[385369286,1757795438006,-130.50553365,0.00027943,2]
[385369287,1757795438016,-150.0,0.00027943,2]
[385369288,1757795438025,-150.0,0.00027943,2]
[385369289,1757795438034,-150.0,0.00027943,2]
[385369290,1757795438043,-150.0,0.00027943,2]
[385369291,1757795438053,-150.0,0.00027943,2]
[385369292,1757795438062,-150.0,0.00027943,2]
[385369293,1757795438071,-150.0,0.00027943,2]
[385369294,1757795438082,-150.0,0.00027943,2]
[385369295,1757795438091,-154.09013967,0.00027943,2]
[385369296,1757795438100,-150.0,0.00027943,2]
[385369297,1757795438109,-202.84644217,0.00027943,2]
[385369298,1757795438119,-150.0,0.00027943,2]
[385369300,1757795438128,-500.0,0.00027967,2]
[385369302,1757795438137,-500.0,0.00027967,2]
[385369304,1757795438146,-500.0,0.00027967,2]
[385369306,1757795438155,-500.0,0.00027967,2]
[385369307,1757795438164,-500.0,0.00027967,2]
[385369308,1757795438174,-500.0,0.00027967,2]
[385369310,1757795438183,-247.15660772,0.00027967,2]
[385369312,1757795438196,-500.0,0.00027967,2]
[385369314,1757795438205,-500.0,0.00027967,2]
[385369316,1757795438214,-36.95353675,0.00027967,2]
[385369319,1757795438226,-463.04646325,0.00027967,2]
[385369321,1757795438235,-500.0,0.00027967,2]
[385369323,1757795438244,-67.98977526,0.00027967,2]
[385369325,1757795438260,-432.01022474,0.00027967,2]
[385369328,1757795438270,-67.98977526,0.00027967,2]
[385369389,1757795439970,-432.01022474,0.00027967,2]
[385369390,1757795439981,-500.0,0.00027967,2]
[385369391,1757795439990,-500.0,0.00027967,2]
[385369392,1757795440004,-500.0,0.00027967,2]
[385369393,1757795440014,-500.0,0.00027967,2]
[385369394,1757795440025,-500.0,0.00027967,2]
[385369395,1757795440035,-500.0,0.00027967,2]
[385369396,1757795440044,-500.0,0.00027967,2]
[385369397,1757795440053,-500.0,0.00027967,2]
[385369398,1757795440062,-500.0,0.00027967,2]
[385369399,1757795440071,-500.0,0.00027967,2]
[385369400,1757795440081,-500.0,0.00027967,2]
[385369401,1757795440090,-500.0,0.00027967,2]
[385369402,1757795440099,-500.0,0.00027967,2]
[385369403,1757795440108,-500.0,0.00027967,2]
[385369404,1757795440117,-500.0,0.00027967,2]
[385369405,1757795440126,-500.0,0.00027967,2]
[385369406,1757795440135,-500.0,0.00027967,2]
[385369407,1757795440144,-500.0,0.00027967,2]
[385369408,1757795440153,-500.0,0.00027967,2]
[385369409,1757795440163,-500.0,0.00027967,2]
[385369410,1757795440172,-500.0,0.00027967,2]
[385369411,1757795440182,-500.0,0.00027967,2]
[385369412,1757795440191,-500.0,0.00027967,2]
[385369413,1757795440200,-500.0,0.00027967,2]
[385369414,1757795440210,-500.0,0.00027967,2]
[385369415,1757795440219,-500.0,0.00027967,2]
[385369416,1757795440228,-500.0,0.00027967,2]
[385369417,1757795440237,-500.0,0.00027967,2]
[385369418,1757795440247,-560.26510471,0.00027967,2]
[385369419,1757795440256,-500.0,0.00027973,5]
[385369420,1757795440265,-502.99899146,0.00027973,2]
[385369421,1757795440274,-500.0,0.00027973,5]
[385369422,1757795440283,-500.0,0.00027973,5]
[385369423,1757795440292,-22440.86093223,0.00027995,2]
[385369436,1757795440515,-3802.11266777,0.00027995,2]
[385369438,1757795440524,-212.99211257,0.00028,10]
[385369440,1757795440537,-1000.7842,0.00028117,2]
[385369442,1757795440547,-151.0,0.00028166,7]
[385369445,1757795440555,-400.0,0.00028169,2]
[385369447,1757795440565,-400.0,0.00028169,2]
[385369449,1757795440573,-400.0,0.00028169,2]
[385369451,1757795440583,-643.67,0.00028169,2]
[385369453,1757795440592,-712.76,0.00028169,2]
[385369455,1757795440601,-892.33,0.00028169,2]
[385369457,1757795440610,-400.0,0.00028169,2]
[385369459,1757795440618,-763.42,0.00028169,2]
[385369461,1757795440627,-1077.94,0.00028169,2]
[385369463,1757795440636,-400.0,0.00028169,2]
[385369465,1757795440646,-565.99,0.00028169,2]
[385369467,1757795440655,-1288.43,0.00028169,2]
[385369469,1757795440664,-444.48,0.00028169,2]
[385369471,1757795440675,-811.73,0.00028169,2]
[385369473,1757795440684,-400.0,0.00028169,2]
[385369475,1757795440693,-400.0,0.00028169,2]
[385369477,1757795440702,-400.0,0.00028169,2]
[385369479,1757795440710,-400.0,0.00028169,2]
[385369481,1757795440719,-400.0,0.00028169,2]
[385369499,1757795440874,-400.0,0.00028169,2]
[385369501,1757795440883,-696.06,0.00028169,2]
[385369503,1757795440893,-911.86,0.00028169,2]
[385369506,1757795440902,-400.0,0.00028169,2]
[385369508,1757795440911,-150.0,0.00028217,2]
[385369510,1757795440920,-150.0,0.00028217,2]
[385369512,1757795440929,-200.0,0.00028217,2]
[385369514,1757795440939,-150.0,0.00028217,2]
[385369516,1757795440948,-150.0,0.00028217,2]
[385369518,1757795440957,-400.0,0.00028217,2]
[385369520,1757795440966,-400.0,0.00028217,2]
[385369522,1757795440975,-400.0,0.00028217,2]
[385369524,1757795440984,-400.0,0.00028217,2]
[385369526,1757795440994,-400.0,0.00028217,2]
[385369528,1757795441007,-400.0,0.00028217,2]
[385369530,1757795441016,-400.0,0.00028217,2]
[385369532,1757795441025,-662.68,0.00028217,2]
[385369534,1757795441034,-400.0,0.00028217,2]
[385369536,1757795441044,-400.0,0.00028217,2]
[385369537,1757795441053,-400.0,0.00028217,2]
[385369540,1757795441062,-591.45,0.00028217,2]
[385369544,1757795441074,-400.0,0.00028217,2]
[385369546,1757795441084,-548.83,0.00028217,2]
[385369548,1757795441094,-400.0,0.00028217,2]
[385369550,1757795441102,-400.0,0.00028217,2]
[385369552,1757795441111,-750.45,0.00028217,2]
[385369554,1757795441120,-423.62,0.00028217,2]
[385369556,1757795441129,-400.0,0.00028217,2]
[385369558,1757795441138,-151.0,0.00028217,7]
[385369560,1757795441147,-400.0,0.00028217,2]
[385369562,1757795441156,-160.51022,0.00028217,7]
[385369564,1757795441166,-151.0,0.00028217,7]
[385369565,1757795441175,-151.0,0.00028217,7]
[385369567,1757795441185,-165.16162827,0.00028217,7]
[385369570,1757795441195,-151.0,0.00028217,7]
[385369571,1757795441205,-152.015429,0.00028217,7]
[385369573,1757795441214,-151.0,0.00028217,7]
[385369576,1757795441223,-151.0,0.00028217,7]
[385369578,1757795441233,-151.0,0.00028217,7]
[385369580,1757795441243,-151.0,0.00028217,7]
[385369582,1757795441252,-151.0,0.00028217,7]
[385369583,1757795441261,-151.0,0.00028217,7]
[385369586,1757795441271,-151.0,0.00028217,7]
[385369588,1757795441280,-153.736828,0.00028217,7]
[385369590,1757795441290,-151.0,0.00028217,7]
[385369591,1757795441299,-151.0,0.00028217,7]
[385369593,1757795441308,-160.0,0.00028217,14]
[385369595,1757795441317,-193.83626,0.00028217,14]
[385369597,1757795441326,-151.0,0.00028217,7]
[385369599,1757795441335,-151.0,0.00028217,7]
[385369601,1757795441344,-151.0,0.00028217,7]
[385369603,1757795441353,-160.0,0.00028217,7]
[385369605,1757795441362,-160.0,0.00028217,7]
[385369607,1757795441371,-212.99211257,0.00028217,7]
[385369609,1757795441380,-5000.0,0.00028297,2]
[385369611,1757795441389,-151.0,0.00028297,7]
[385369613,1757795441399,-153.008105,0.00028297,7]
[385369616,1757795441408,-151.0,0.00028297,7]
[385369617,1757795441417,-151.0,0.00028297,7]
[385369619,1757795441426,-151.0,0.00028297,7]
[385369621,1757795441436,-151.0,0.00028297,7]
[385369624,1757795441445,-151.0,0.00028297,7]
[385369625,1757795441454,-151.0,0.00028297,7]
[385369627,1757795441463,-151.0,0.00028297,7]
[385369629,1757795441473,-151.0,0.00028297,7]
[385369631,1757795441482,-151.0,0.00028297,7]
[385369633,1757795441490,-151.0,0.00028297,7]
[385369636,1757795441500,-151.0,0.00028297,7]
[385369638,1757795441510,-151.0,0.00028297,7]
[385369640,1757795441518,-151.0,0.00028297,7]
[385369642,1757795441527,-151.0,0.00028297,7]
[385369643,1757795441536,-151.0,0.00028297,7]
[385369646,1757795441545,-1790.73,0.00028342,2]
[385369648,1757795441555,-1227.78,0.00028342,2]
[385369649,1757795441564,-579.51,0.00028342,2]
[385369652,1757795441574,-400.0,0.00028342,2]
[385369654,1757795441583,-400.0,0.00028342,2]
[385369655,1757795441592,-500.0,0.00028342,2]
[385369658,1757795441603,-264.5853237,0.00028343,2]
[385369660,1757795441612,-11172.98635837,0.00028343,2]
[385369662,1757795441621,-151.0,0.00028343,7]
[385369664,1757795441631,-151.0,0.00028343,7]
[385369666,1757795441640,-151.0,0.00028343,7]
[385369668,1757795441650,-385.478269,0.00028343,7]
[385369670,1757795441659,-201.920688,0.00028343,7]
[385369672,1757795441668,-385.478269,0.00028343,7]
[385369674,1757795441677,-152.894053,0.00028343,7]
[385369676,1757795441687,-385.478269,0.00028343,7]
[385369678,1757795441696,-446.721724,0.00028343,7]
[385369680,1757795441706,-151.0,0.00028343,7]
[385369682,1757795441715,-385.478269,0.00028343,7]
[385369684,1757795441725,-446.721724,0.00028343,7]
[385369686,1757795441734,-151.0,0.00028343,7]
[385369688,1757795441744,-446.721724,0.00028343,7]
[385369690,1757795441753,-151.0,0.00028343,7]
[385369692,1757795441763,-446.721724,0.00028343,7]
[385369694,1757795441773,-151.0,0.00028343,7]
[385369696,1757795441782,-397.270818,0.00028343,7]
[385369698,1757795441791,-397.270818,0.00028343,7]
[385369700,1757795441801,-397.270818,0.00028343,7]
[385369702,1757795441810,-397.270818,0.00028343,7]
[385369704,1757795441819,-151.0,0.00028363,7]
[385369706,1757795441830,-400.0,0.00028366,2]
[385369708,1757795441839,-712.25,0.00028366,2]
[385369710,1757795441849,-769.47,0.00028366,2]
[385369712,1757795441859,-400.0,0.00028366,2]
[385369714,1757795441869,-400.0,0.00028366,2]
[385369716,1757795441879,-12578.7491698,0.00028367,2]
[385369717,1757795441889,-151.0,0.00028367,7]
[385369719,1757795441899,-257.846901,0.00028367,7]
[385369722,1757795441909,-151.0,0.00028367,7]
[385369723,1757795441919,-153.660541,0.00028367,7]
[385369724,1757795441928,-3768.584102,0.00028367,7]
[385369727,1757795441938,-151.0,0.00028368,7]
[385369728,1757795441947,-151.0,0.00028368,7]
[385369731,1757795441957,-230.658457,0.00028368,7]
[385369733,1757795441966,-151.0,0.00028368,7]
[385369735,1757795441976,-156.34023609,0.00028369,2]
[385369737,1757795441985,-459.38,0.00028387,2]
[385369739,1757795441996,-702.56,0.00028387,2]
[385369741,1757795442007,-400.0,0.00028387,2]
[385369743,1757795442016,-755.08,0.00028387,2]
[385369745,1757795442025,-400.0,0.00028387,2]
[385369747,1757795442034,-305.97477898,0.00028387,2]
[385369749,1757795442044,-400.0,0.00028387,2]
[385369751,1757795442052,-400.0,0.00028387,2]
[385369753,1757795442062,-16034.227066,0.00028388,3]
[385369755,1757795442071,-151.0,0.00028394,7]
[385369757,1757795442080,-400.0,0.00028397,2]
[385369759,1757795442090,-400.0,0.00028397,2]
[385369761,1757795442099,-424.6,0.00028397,2]
[385369763,1757795442108,-566.24,0.00028397,2]
[385369765,1757795442118,-400.0,0.00028397,2]